fUSD/lending_fUSD_20260217
["ID","MTS","AMOUNT","RATE_DAILY","PERIOD"]
[405785286,1771307439992,-500.0,0.00013698,2]
[405785287,1771307440003,-500.0,0.00013698,2]
[405785288,1771307440014,-500.0,0.00013698,2]
[405785289,1771307440025,-500.0,0.00013698,2]
[405785290,1771307440037,-522.2154278,0.00013698,2]
[405785291,1771307440048,-1125.16,0.00013698,2]
[405785292,1771307440059,-1125.16,0.00013698,2]
[405785293,1771307440070,-1125.16,0.00013698,2]
[405785294,1771307440081,-1125.16,0.00013698,2]
[405785295,1771307440092,-1125.16,0.00013698,2]
[405785296,1771307440102,-1125.16,0.00013698,2]
[405785297,1771307440113,-1125.16,0.00013698,2]
[405785298,1771307440123,-1125.16,0.00013698,2]
[405785299,1771307440134,-1125.16,0.00013698,2]
[405785300,1771307440145,-1125.16,0.00013698,2]
[405785301,1771307440156,-1125.16,0.00013698,2]
[405785302,1771307440166,-1125.16,0.00013698,2]
[405785303,1771307440178,-1125.16,0.00013698,2]
[405785304,1771307440189,-1125.16,0.00013698,2]
[405785305,1771307440199,-1125.16,0.00013698,2]
[405785306,1771307440215,-1125.16,0.00013698,2]
[405785307,1771307440227,-1125.16,0.00013698,2]
[405785308,1771307440238,-1125.16,0.00013698,2]
[405785309,1771307440249,-1125.16,0.00013698,2]
[405785310,1771307440261,-456.05800986,0.00013698,2]
[405785311,1771307440272,-500.0,0.00013698,2]
[405785312,1771307440284,-500.0,0.00013698,2]
[405785313,1771307440296,-500.0,0.00013698,2]
[405785314,1771307440310,-500.0,0.00013698,2]
[405785315,1771307440321,-500.0,0.00013698,2]
[405785316,1771307440332,-500.0,0.00013698,2]
[405785317,1771307440344,-500.0,0.00013698,2]
[405785318,1771307440355,-500.0,0.00013698,2]
[405785319,1771307440367,-500.0,0.00013698,2]
[405785320,1771307440380,-500.0,0.00013698,2]
[405785321,1771307440391,-430.55674509,0.00013698,2]
[405785322,1771307440402,-500.0,0.00013698,2]
[405785323,1771307440413,-500.0,0.00013698,2]
[405785324,1771307440425,-500.0,0.00013698,2]
[405785325,1771307440436,-500.0,0.00013698,2]
[405785326,1771307440447,-500.0,0.00013698,2]
[405785327,1771307440459,-500.0,0.00013698,2]
[405785328,1771307440470,-500.0,0.00013698,2]
[405785329,1771307440481,-500.0,0.00013698,2]
[405785330,1771307440492,-500.0,0.00013698,2]
[405785331,1771307440503,-500.0,0.00013698,2]
[405785332,1771307440514,-500.0,0.00013698,2]
[405785333,1771307440526,-500.0,0.00013698,2]
[405785334,1771307440536,-500.0,0.00013698,2]
[405785335,1771307440552,-500.0,0.00013698,2]
[405785336,1771307440564,-500.0,0.00013698,2]
[405785337,1771307440575,-500.0,0.00013698,2]
[405785338,1771307440587,-500.0,0.00013698,2]
[405785339,1771307440599,-500.0,0.00013698,2]
[405785340,1771307440610,-506.79858148,0.00013698,2]
[405785341,1771307440622,-535.55684817,0.00013698,2]
[405785342,1771307440633,-500.0,0.00013698,2]
[405785343,1771307440644,-500.0,0.00013698,2]
[405785344,1771307440656,-500.0,0.00013698,2]
[405785345,1771307440669,-639.90682726,0.00013698,2]
[405785346,1771307440687,-915.21,0.00013698,2]
[405785347,1771307440703,-915.21,0.00013698,2]
[405785348,1771307440717,-915.21,0.00013698,2]
[405785349,1771307440728,-915.21,0.00013698,2]
[405785350,1771307440739,-915.21,0.00013698,2]
[405785351,1771307440751,-915.21,0.00013698,2]
[405785352,1771307440766,-915.21,0.00013698,2]
[405785353,1771307440777,-915.21,0.00013698,2]
[405785354,1771307440788,-915.21,0.00013698,2]
[405785355,1771307440799,-915.21,0.00013698,2]
[405785356,1771307440811,-915.21,0.00013698,2]
[405785357,1771307440821,-915.21,0.00013698,2]
[405785358,1771307440834,-915.21,0.00013698,2]
[405785359,1771307440845,-915.21,0.00013698,2]
[405785360,1771307440856,-915.21,0.00013698,2]
[405785361,1771307440867,-915.21,0.00013698,2]
[405785362,1771307440879,-915.21,0.00013698,2]
[405785363,1771307440890,-500.0,0.00013698,2]
[405785364,1771307440902,-500.0,0.00013698,2]
[405785365,1771307440913,-500.0,0.00013698,2]
[405785366,1771307440930,-307.44205355,0.00013698,2]
[405785367,1771307440942,-500.0,0.00013698,2]
[405785368,1771307440953,-500.0,0.00013698,2]
[405785369,1771307440965,-500.0,0.00013698,2]
[405785370,1771307440976,-500.0,0.00013698,2]
[405785371,1771307440988,-500.0,0.00013698,2]
[405785372,1771307440999,-500.0,0.00013698,2]
[405785373,1771307441012,-500.0,0.00013698,2]
[405785374,1771307441024,-500.0,0.00013698,2]
[405785375,1771307441036,-500.0,0.00013698,2]
[405785376,1771307441048,-500.0,0.00013698,2]
[405785377,1771307441059,-500.0,0.00013698,2]
[405785378,1771307441070,-500.0,0.00013698,2]
[405785379,1771307441082,-500.0,0.00013698,2]
[405785380,1771307441093,-500.0,0.00013698,2]
[405785381,1771307441105,-500.0,0.00013698,2]
[405785382,1771307441117,-500.0,0.00013698,2]
[405785383,1771307441129,-500.0,0.00013698,2]
[405785384,1771307441141,-349.69131006,0.00013698,2]
[405785385,1771307441151,-500.0,0.00013698,2]
[405785386,1771307441163,-500.0,0.00013698,2]
[405785387,1771307441174,-500.0,0.00013698,2]
[405785388,1771307441188,-500.0,0.00013698,2]
[405785389,1771307441207,-511.5660924,0.00013698,2]
[405785390,1771307441227,-500.0,0.00013698,2]
[405785391,1771307441239,-529.40507312,0.00013698,2]
[405785392,1771307441251,-500.0,0.00013698,2]
[405785393,1771307441263,-500.0,0.00013698,2]
[405785394,1771307441275,-500.0,0.00013698,2]
[405785395,1771307441285,-500.0,0.00013698,2]
[405785396,1771307441304,-500.0,0.00013698,2]
[405785397,1771307441315,-500.0,0.00013698,2]
[405785398,1771307441326,-500.0,0.00013698,2]
[405785399,1771307441338,-500.0,0.00013698,2]
[405785400,1771307441349,-500.0,0.00013698,2]
[405785401,1771307441360,-500.0,0.00013698,2]
[405785402,1771307441372,-500.0,0.00013698,2]
[405785403,1771307441383,-500.0,0.00013698,2]
[405785404,1771307441394,-500.0,0.00013698,2]
[405785405,1771307441405,-500.0,0.00013698,2]
[405785406,1771307441415,-500.0,0.00013698,2]
[405785407,1771307441426,-500.0,0.00013698,2]
[405785408,1771307441437,-500.0,0.00013698,2]
[405785409,1771307441448,-538.27974596,0.00013698,2]
[405785410,1771307441458,-500.0,0.00013698,2]
[405785411,1771307441469,-500.0,0.00013698,2]
[405785412,1771307441480,-500.0,0.00013698,2]
[405785413,1771307441491,-500.0,0.00013698,2]
[405785414,1771307441502,-500.0,0.00013698,2]
[405785415,1771307441513,-500.0,0.00013698,2]
[405785416,1771307441523,-500.0,0.00013698,2]
[405785417,1771307441534,-500.0,0.00013698,2]
[405785418,1771307441545,-500.0,0.00013698,2]
[405785419,1771307441557,-500.0,0.00013698,2]
[405785420,1771307441568,-500.0,0.00013698,2]
[405785421,1771307441579,-500.0,0.00013698,2]
[405785422,1771307441590,-500.0,0.00013698,2]
[405785423,1771307441600,-500.0,0.00013698,2]
[405785424,1771307441611,-500.0,0.00013698,2]
[405785425,1771307441621,-200.0,0.00013699,2]
[405785426,1771307441632,-183.74,0.00013699,2]
[405785427,1771307441643,-3000.0,0.00013712,2]
[405785428,1771307441654,-5530.0,0.00014,5]
[405785429,1771307441664,-846.3153877,0.0001426,2]
[405785430,1771307441674,-187.79,0.00014435,2]
[405785431,1771307441685,-23617.03509136,0.00014436,2]
[405785432,1771307441695,-7646.21367114,0.00014436,2]
[405785433,1771307441706,-915.21,0.00014599,2]
[405785434,1771307441716,-286.9609652,0.00014599,2]
[405785435,1771307441726,-151.0,0.00014634,2]
[405785436,1771307441737,-151.0,0.00014634,2]
[405785437,1771307441747,-151.0,0.00014634,2]
[405785438,1771307441757,-500.0,0.00014639,2]
[405785439,1771307441767,-505.24249427,0.00014639,2]
[405785440,1771307441777,-9675.0,0.00014855,2]
[405785441,1771307441788,-250.0,0.00015,2]
[405785442,1771307441798,-160.0,0.00015068,4]
[405785443,1771307441809,-160.0,0.00015256,4]
[405785444,1771307441819,-4962.642358,0.00015344,7]
[405785445,1771307441830,-23337.122729,0.00015344,7]
[405785446,1771307441840,-173.57638878,0.00015538,2]
[405785447,1771307441851,-160.0,0.00015538,2]
[405785448,1771307441862,-763.92788936,0.0001555,2]
[405785449,1771307441873,-500.0,0.0001556,2]
[405785450,1771307441883,-500.0,0.0001556,2]
[405785451,1771307441894,-578.20924308,0.0001556,2]
[405785452,1771307441904,-586.96513288,0.0001556,2]
[405785453,1771307441915,-151.0,0.0001556,2]
[405785454,1771307441926,-1421.82630279,0.0001556,2]
[405785455,1771307441937,-693.3919763,0.0001556,2]
[405785456,1771307441948,-3000.0,0.0001556,2]
[405785457,1771307441958,-250.0,0.0001556,2]
[405785458,1771307441969,-250.0,0.0001556,2]
[405785459,1771307441979,-3000.0,0.0001556,2]
[405785460,1771307441990,-3000.0,0.0001556,2]
[405785461,1771307442001,-253.83621088,0.0001556,2]
[405785462,1771307442012,-1000.0,0.0001556,2]
[405785463,1771307442023,-3000.0,0.0001556,2]
[405785464,1771307442033,-1000.0,0.0001556,2]
[405785465,1771307442044,-3000.0,0.0001556,2]
[405785466,1771307442055,-209.40437684,0.0001556,2]
[405785467,1771307442067,-3000.0,0.0001556,2]
[405785468,1771307442078,-526.36214318,0.0001556,2]
[405785469,1771307442089,-3000.0,0.0001556,2]
[405785470,1771307442100,-3099.28707761,0.0001556,2]
[405785471,1771307442110,-721.12765535,0.0001556,2]
[405785472,1771307442120,-250.0,0.0001556,2]
[405785473,1771307442131,-250.0,0.0001556,2]
[405785474,1771307442141,-250.0,0.0001556,2]
[405785475,1771307442153,-250.0,0.0001556,2]
[405785476,1771307442163,-250.0,0.0001556,2]
[405785477,1771307442174,-250.0,0.0001556,2]
[405785478,1771307442185,-160.0,0.0001556,2]
[405785479,1771307442195,-299.40346672,0.0001556,2]
[405785480,1771307442205,-250.0,0.0001556,2]
[405785481,1771307442216,-250.0,0.0001556,2]
[405785482,1771307442226,-254.77802588,0.0001556,2]
[405785483,1771307442238,-151.0,0.0001556,2]
[405785484,1771307442249,-151.0,0.0001556,2]
[405785485,1771307442260,-151.0,0.0001556,2]
[405785486,1771307442270,-151.0,0.0001556,2]
[405785487,1771307442280,-151.0,0.0001556,2]
[405785488,1771307442291,-151.0,0.0001556,2]
[405785489,1771307442310,-151.0,0.0001556,2]
[405785490,1771307442321,-261.90795033,0.0001556,2]
[405785491,1771307442332,-177.7218892,0.0001556,2]
[405785492,1771307442343,-3000.0,0.0001556,2]
[405785493,1771307442353,-3000.0,0.0001556,2]
[405785494,1771307442364,-1070.81608438,0.0001556,2]
[405785495,1771307442374,-250.0,0.0001556,2]
[405785496,1771307442384,-250.0,0.0001556,2]
[405785497,1771307442394,-250.0,0.0001556,2]
[405785498,1771307442404,-250.0,0.0001556,2]
[405785499,1771307442415,-250.0,0.0001556,2]
[405785500,1771307442425,-250.0,0.0001556,2]
[405785501,1771307442435,-250.0,0.0001556,2]
[405785502,1771307442447,-250.0,0.0001556,2]
[405785503,1771307442457,-302.70619241,0.0001556,2]
[405785504,1771307442467,-250.0,0.0001556,2]
[405785505,1771307442478,-250.0,0.0001556,2]
[405785506,1771307442488,-250.0,0.0001556,2]
[405785507,1771307442498,-250.0,0.0001556,2]
[405785508,1771307442509,-151.12957794,0.0001556,2]
[405785509,1771307442520,-250.0,0.0001556,2]
[405785510,1771307442531,-250.0,0.0001556,2]
[405785511,1771307442541,-250.0,0.0001556,2]
[405785512,1771307442552,-250.0,0.0001556,2]
[405785513,1771307442562,-250.0,0.0001556,2]
[405785514,1771307442572,-200.0,0.0001556,2]
[405785515,1771307442583,-250.0,0.0001556,2]
[405785516,1771307442594,-250.0,0.0001556,2]
[405785517,1771307442722,-250.0,0.0001556,2]
[405785518,1771307442732,-250.0,0.0001556,2]
[405785519,1771307442741,-250.0,0.0001556,2]
[405785520,1771307442751,-250.0,0.0001556,2]
[405785521,1771307442761,-250.0,0.0001556,2]
[405785522,1771307442771,-279.55615727,0.0001556,2]
[405785523,1771307442781,-162.380719,0.0001556,2]
[405785524,1771307442792,-250.0,0.0001556,2]
[405785525,1771307442801,-250.0,0.0001556,2]
[405785526,1771307442811,-250.0,0.0001556,2]
[405785527,1771307442821,-250.0,0.0001556,2]
[405785528,1771307442830,-250.0,0.0001556,2]
[405785529,1771307442840,-250.0,0.0001556,2]
[405785530,1771307442850,-250.0,0.0001556,2]
[405785531,1771307442860,-250.0,0.0001556,2]
[405785532,1771307442870,-250.0,0.0001556,2]
[405785533,1771307442880,-250.0,0.0001556,2]
[405785534,1771307442890,-250.0,0.0001556,2]
[405785535,1771307442900,-23617.03509136,0.0001559,2]
[405785536,1771307442909,-7646.21367114,0.0001559,2]
[405785537,1771307442920,-151.0,0.00015615,2]
[405785538,1771307442931,-719.04747942,0.00015615,2]
[405785539,1771307442941,-151.0,0.0001567,2]
[405785540,1771307442951,-745.65223616,0.0001567,2]
[405785541,1771307442961,-151.0,0.00015725,2]
[405785542,1771307442970,-773.2413689,0.00015725,2]
[405785543,1771307442980,-151.0,0.0001578,2]
[405785544,1771307442990,-801.85129955,0.0001578,2]
[405785545,1771307443000,-241.70774661,0.00015805,2]
[405785546,1771307443010,-831.51979763,0.00015835,2]
[405785547,1771307443020,-187.79,0.00015879,2]
[405785548,1771307443029,-862.28603014,0.0001589,2]
[405785549,1771307443039,-894.19061326,0.00015945,2]
[405785550,1771307443049,-5000.0,0.0001596,2]
[405785551,1771307443059,-303.26122484,0.00016,2]
[405785552,1771307443069,-927.27566595,0.00016,2]
[405785553,1771307443079,-961.58486559,0.00016055,2]
[405785554,1771307443088,-217.15233878,0.00016108,2]
[405785555,1771307443098,-200.0,0.00016108,2]
[405785556,1771307443108,-997.16350561,0.0001611,2]
[405785557,1771307443118,-315.90732778,0.00016464,2]
[405785558,1771307443127,-9917.64356668,0.00016518,2]
[405785559,1771307443137,-160.57318335,0.00016534,2]
[405785560,1771307443149,-297.18074641,0.00016656,2]
[405785561,1771307443158,-23617.03509136,0.00016745,2]
[405785562,1771307443167,-7646.21367114,0.00016745,2]
[405785563,1771307443177,-420.62043768,0.0001683,2]
[405785564,1771307443186,-160.32510575,0.00016929,2]
[405785565,1771307443196,-168.3888056,0.00016929,2]
[405785566,1771307443206,-679.08,0.00016981,2]
[405785567,1771307443215,-679.08,0.00016981,2]
[405785568,1771307443225,-679.08,0.00016981,2]
[405785569,1771307443234,-679.08,0.00016981,2]
[405785570,1771307443243,-679.22619195,0.00016981,2]
[405785571,1771307443253,-500.0,0.00016981,2]
[405785572,1771307443262,-500.0,0.00016981,2]
[405785573,1771307443271,-500.0,0.00016981,2]
[405785574,1771307443280,-500.0,0.00016981,2]
[405785575,1771307443289,-388.47570654,0.00016981,2]
[405785577,1771307443301,-508.20125622,0.00016981,2]
[405785580,1771307443314,-1125.16,0.00016981,2]
[405785581,1771307443324,-1125.16,0.00016981,2]
[405785583,1771307443333,-1125.16,0.00016981,2]
[405785584,1771307443343,-1125.16,0.00016981,2]
[405785585,1771307443353,-1125.29508189,0.00016981,2]
[405785587,1771307443363,-300.0,0.00017,2]
[405785589,1771307443373,-160.0,0.00017,7]
[405785592,1771307443385,-150.0,0.00017024,2]
[405785595,1771307443394,-502.0,0.000173,2]
[405785599,1771307443403,-187.79,0.00017322,2]
[405785602,1771307443413,-350.0,0.00017352,2]
[405785604,1771307443423,-679.34104264,0.00017461,2]
[405785605,1771307443433,-306.51422453,0.00017519,2]
[405785606,1771307443443,-350.0,0.00017572,2]
[405785607,1771307443453,-5016.38407619,0.0001764,2]
[405785608,1771307443463,-444.64,0.00017808,2]
[405785609,1771307443473,-500.0,0.00017808,2]
[405785610,1771307443483,-500.0,0.00017808,2]
[405785611,1771307443492,-500.0,0.00017808,2]
[405785612,1771307443502,-500.0,0.00017808,2]
[405785613,1771307443515,-595.71508911,0.00017808,2]
[405785614,1771307443525,-500.0,0.00017808,2]
[405785615,1771307443535,-500.0,0.00017808,2]
[405785616,1771307443544,-500.0,0.00017808,2]
[405785617,1771307443554,-500.0,0.00017808,2]
[405785618,1771307443563,-500.0,0.00017808,2]
[405785619,1771307443572,-250.0,0.00017808,20]
[405785620,1771307443582,-250.0,0.00017808,20]
[405785621,1771307443591,-250.0,0.00017808,20]
[405785622,1771307443601,-250.0,0.00017808,20]
[405785623,1771307443611,-250.0,0.00017808,20]
[405785624,1771307443620,-250.0,0.00017808,20]
[405785625,1771307443630,-250.0,0.00017808,20]
[405785626,1771307443640,-250.0,0.00017808,20]
[405785627,1771307443649,-250.0,0.00017808,20]
[405785628,1771307443659,-250.0,0.00017808,20]
[405785629,1771307443668,-250.0,0.00017808,20]
[405785630,1771307443678,-250.0,0.00017808,20]
[405785631,1771307443687,-250.0,0.00017808,20]
[405785632,1771307443697,-250.0,0.00017808,20]
[405785633,1771307443706,-250.0,0.00017808,20]
[405785634,1771307443716,-211.316222,0.00017808,20]
[405785635,1771307443725,-800.0,0.00017808,2]
[405785636,1771307443735,-1394.36444,0.0001782,2]
[405785637,1771307443744,-1394.36444,0.0001782,2]
[405785638,1771307443753,-350.0,0.00017823,2]
[405785639,1771307443763,-200.0,0.00017855,2]
[405785640,1771307443773,-200.0,0.00017856,2]
[405785641,1771307443783,-200.0,0.00017856,2]
[405785642,1771307443792,-7595.34140649,0.0001789,2]
[405785643,1771307443802,-7595.34140646,0.00017892,2]
[405785644,1771307443813,-7595.34140646,0.00017894,2]
[405785645,1771307443823,-7595.34140646,0.00017896,2]
[405785646,1771307443834,-7595.34140646,0.00017898,2]
[405785647,1771307443844,-1488.83065607,0.000179,2]
[405785648,1771307443855,-25000.0,0.000179,3]
[405785649,1771307443866,-160.0,0.000179,3]
[405785650,1771307443876,-235.55627713,0.000179,2]
[405785651,1771307443886,-23617.03509136,0.000179,2]
[405785652,1771307443912,-7646.21367114,0.000179,2]
[405785653,1771307443923,-7595.34140646,0.000179,2]
[405785654,1771307443936,-915.21,0.00017908,2]
[405785655,1771307443946,-915.21,0.00017908,2]
[405785656,1771307443956,-915.21,0.00017908,2]
[405785657,1771307443967,-915.21,0.00017908,2]
[405785658,1771307443977,-915.21,0.00017908,2]
[405785659,1771307443988,-915.2263384,0.00017908,2]
[405785660,1771307443998,-398521.8814731,0.00017909,2]
[405785661,1771307444010,-763.92788936,0.0001799,2]
[405785662,1771307444020,-763.92788936,0.0001799,2]
[405785663,1771307444030,-151.0,0.00017997,2]
[405785664,1771307444040,-502.75243677,0.00017999,2]
[405785665,1771307444051,-300.0,0.00017999,2]
[405785666,1771307444061,-300.0,0.00017999,2]
[405785667,1771307444071,-666.0,0.00017999,2]
[405785668,1771307444081,-300.0,0.00017999,2]
[405785669,1771307444091,-666.0,0.00017999,2]
[405785670,1771307444103,-300.0,0.00017999,2]
[405785671,1771307444114,-666.0,0.00017999,2]
[405785672,1771307444123,-300.0,0.00017999,2]
[405785673,1771307444134,-23598.10797836,0.00017999,2]
[405785674,1771307444144,-474235.14652779,0.00018,2]
[405785675,1771307444798,-651.0,0.00018,2]
[405785676,1771307444818,-301.22878301,0.00018,2]
[405785677,1771307444861,-68441.613695,0.00018,2]
[405785678,1771307444873,-2944.77445898,0.00018,2]
[405785679,1771307445055,-1000.0,0.00014702,2]
[405785680,1771307445065,-1000.0,0.00014702,2]
[405785681,1771307445075,-1000.0,0.00014702,2]
[405785682,1771307445084,-1000.0,0.00014702,2]
[405785683,1771307445094,-1000.0,0.00014702,2]
[405785684,1771307445103,-1000.0,0.00014702,2]
[405785685,1771307445113,-8010615.96263512,0.00018,2]
[405785686,1771307445132,-1028.85281529,0.00018,2]
[405785687,1771307445147,-1702.34315475,0.00018,2]
[405785688,1771307445350,-966.3271354,0.000179,2]
[405785691,1771307446312,-1074.36496554,0.00017542,2]
[405785692,1771307446322,-1005.42859451,0.00017542,2]
[405785693,1771307446333,-7835.3350546,0.000179,2]
[405785730,1771307511869,-1180.7577,7.524e-05,2]
[405785731,1771307570343,200.0,0.00012,7]
[405785732,1771307611806,255.63,7.5e-05,2]
[405785733,1771307633007,165.41,0.00011,3]
[405785734,1771307643191,9744.38,7.507e-05,2]
[405785735,1771307643554,10000.01,7.507e-05,2]
[405785736,1771307643596,10000.01,7.507e-05,2]
[405785737,1771307643625,10000.01,7.507e-05,2]
[405785738,1771307643652,10000.01,7.507e-05,2]
[405785739,1771307643677,10000.01,7.507e-05,2]
[405785740,1771307643703,8729.57,7.507e-05,2]
[405785741,1771307651290,2138.58824712,7.4e-05,3]
[405785742,1771307651395,2470.01962164,7.4e-05,3]
[405785743,1771307651446,3000.30982088,7.4e-05,3]
[405785744,1771307651498,3066.59609578,7.4e-05,3]
[405785745,1771307651555,3928.31766953,7.4e-05,3]
[405785746,1771307651903,150.0,7.496e-05,2]
[405785747,1771307652238,150.0,7.496e-05,2]
[405785748,1771307664042,-500.0,7.523e-05,2]
[405785749,1771307664089,-500.0,7.523e-05,2]
[405785750,1771307664145,-500.0,7.523e-05,2]
[405785751,1771307664200,-500.0,7.523e-05,2]
[405785752,1771307664250,-500.0,7.523e-05,2]
[405785753,1771307664304,-500.0,7.523e-05,2]
[405785754,1771307664357,-500.0,7.523e-05,2]
[405785755,1771307664412,-500.0,7.523e-05,2]
[405785756,1771307664467,-500.0,7.523e-05,2]
[405785757,1771307664512,-284.95854331,7.523e-05,2]
[405785758,1771307664758,-500.0,7.523e-05,2]
[405785759,1771307664804,-500.0,7.523e-05,2]
[405785760,1771307664848,-500.0,7.523e-05,2]
[405785761,1771307664895,-500.0,7.523e-05,2]
[405785762,1771307664941,-500.0,7.523e-05,2]
[405785763,1771307665023,-500.0,7.523e-05,2]
[405785764,1771307665085,-500.0,7.523e-05,2]
[405785765,1771307665144,-500.0,7.523e-05,2]
[405785766,1771307665212,-500.0,7.523e-05,2]
[405785767,1771307665267,-500.0,7.523e-05,2]
[405785768,1771307665443,-500.0,7.523e-05,2]
[405785769,1771307665497,-500.0,7.523e-05,2]
[405785770,1771307665551,-500.0,7.523e-05,2]
[405785771,1771307665600,-500.0,7.523e-05,2]
[405785772,1771307665648,-500.0,7.523e-05,2]
[405785773,1771307667654,500.0,7.523e-05,2]
[405785774,1771307667692,500.0,7.523e-05,2]
[405785775,1771307667735,500.0,7.523e-05,2]
[405785776,1771307667792,500.0,7.523e-05,2]
[405785777,1771307667852,277.42303874,7.523e-05,2]
[405785778,1771307724142,500.0,7.523e-05,2]
[405785779,1771307724194,500.0,7.523e-05,2]
[405785780,1771307724253,409.69215499,7.523e-05,2]
[405785781,1771307724363,500.0,7.523e-05,2]
[405785782,1771307772331,5395.83642048,7.4e-05,3]
[405785783,1771307772392,215.66357591,7.4e-05,3]
[405785784,1771307772428,6753.92377071,7.4e-05,3]
[405785785,1771307772467,6145.2416234,7.4e-05,3]
[405785786,1771307772514,9067.92191482,7.4e-05,3]
[405785787,1771307772550,7194.4089075,7.4e-05,3]
[405785788,1771307772607,9142.86243511,7.4e-05,3]
[405785789,1771307821265,530.47004305,7.523e-05,2]
[405785790,1771307841659,150.0,7.496e-05,2]
[405785791,1771308337756,132.42476322,7.5e-05,2]
[405785792,1771308337784,3287.08179791,7.5e-05,2]
[405785793,1771308337828,4236.88320141,7.5e-05,2]
[405785794,1771308337894,2476.04500068,7.5e-05,2]
[405785795,1771308337920,2578.21484102,7.5e-05,2]
[405785796,1771308337965,5871.63648198,7.5e-05,2]
[405785797,1771308338012,1550.158677,7.5e-05,2]
[405785798,1771308338038,4321.47780498,7.5e-05,2]
[405785799,1771308339066,-214.0,7.523e-05,2]
[405785807,1771308474776,86.0,7.363e-05,2]
[405785808,1771308474804,204.453054,7.363e-05,2]
[405785809,1771308474829,251.57282456,7.363e-05,2]
[405785810,1771308474854,460.57282456,7.363e-05,2]
[405785811,1771308474878,739.42717544,7.363e-05,2]
[405785812,1771308474903,3082.84407147,7.363e-05,2]
[405785813,1771308474927,1124.42287453,7.363e-05,2]
[405785814,1771308474953,1264.73060099,7.363e-05,2]
[405785815,1771308474977,478.09810417,7.363e-05,2]
[405785816,1771308475003,4281.24544491,7.363e-05,2]
[405785817,1771308475028,2389.15347552,7.363e-05,2]
[405785818,1771308475054,722.8955016,7.363e-05,2]
[405785819,1771308483137,-4826.22404825,7.363e-05,2]
[405785820,1771308514251,386.32992327,7.5e-05,2]
[405785821,1771308514309,528.12787724,7.5e-05,2]
[405785822,1771308514353,492.67838875,7.5e-05,2]
[405785823,1771308514415,563.57736573,7.5e-05,2]
[405785824,1771308530036,-500.0,7.547e-05,2]
[405785828,1771308631330,-214.0,7.561e-05,2]
[405785829,1771308631341,-252.66887969,7.561e-05,2]
[405785830,1771308631351,-151.0,7.597e-05,2]
[405785831,1771308631360,-300.0,7.598e-05,2]
[405785832,1771308631370,-150.0,7.598e-05,2]
[405785833,1771308631380,-300.0,7.598e-05,2]
[405785834,1771308631391,-1200.0,7.598e-05,2]
[405785835,1771308631400,-1000.0,7.599e-05,2]
[405785836,1771308631410,-1000.0,7.599e-05,2]
[405785837,1771308631420,-500.0,7.599e-05,2]
[405785838,1771308631429,-500.0,7.599e-05,2]
[405785839,1771308631439,-500.0,7.599e-05,2]
[405785840,1771308631448,-500.0,7.599e-05,2]
[405785841,1771308631458,-500.0,7.599e-05,2]
[405785842,1771308631467,-467.87256102,7.599e-05,2]
[405785843,1771308631479,-32.12743898,7.599e-05,2]
[405785844,1771308631489,-500.0,7.599e-05,2]
[405785845,1771308631498,-43.46023972,7.599e-05,2]
[405785846,1771308631511,-456.53976028,7.599e-05,2]
[405785847,1771308631520,-500.0,7.599e-05,2]
[405785848,1771308631530,-500.0,7.599e-05,2]
[405785849,1771308631539,-500.0,7.599e-05,2]